fUSD/lending_fUSD_20250518
["ID","MTS","AMOUNT","RATE_DAILY","PERIOD"]
[361375652,1747526537077,-157.63301915,0.00012349,2]
[361375653,1747526567415,-44.36698085,0.00012349,2]
[361375654,1747526567437,-107.63301915,0.00012816,2]
[361375655,1747526568964,-67.08676286,0.00012816,2]
[361375656,1747526631721,-232.91323714,0.00012815,2]
[361375657,1747526635280,-237.72319943,0.00012815,2]
[361375658,1747526798905,150.0,0.000135,5]
[361375660,1747526800142,-266.44682209,0.00012,3]
[361375661,1747526803902,-297.8342155,0.00012,3]
[361375662,1747526816744,-231.56154492,0.00012,3]
[361375663,1747526823085,-126.15741749,0.00012,3]
[361375669,1747526898469,-162.38764673,0.00012657,2]
[361375670,1747526903078,-129.79137327,0.00012657,2]
[361375675,1747527032249,-150.0,0.00012723,2]
[361375676,1747527032259,-250.0,0.00012753,2]
[361375677,1747527032269,-17.53020642,0.00012769,2]
[361375678,1747527032334,-182.46979358,0.00012769,2]
[361375679,1747527032343,-103.19179342,0.00012785,2]
[361375680,1747527032399,-165.32820658,0.00012785,2]
[361375681,1747527032409,-529.36356343,0.00012815,2]
[361375682,1747527032419,-250.0,0.00012818,2]
[361375683,1747527032428,-606.06,0.00012884,2]
[361375684,1747527032437,-514.18,0.000129,2]
[361375685,1747527032446,-223.38,0.00012916,2]
[361375686,1747527032455,-250.0,0.0001293,2]
[361375687,1747527032464,-161.3413666,0.00012947,2]
[361375688,1747527032474,-2609.29,0.00012955,2]
[361375689,1747527032483,-1200.0,0.00012973,2]
[361375690,1747527032493,-300.0,0.00012974,2]
[361375691,1747527032502,-1963.08339143,0.00012975,2]
[361375692,1747527032514,-1911.64632887,0.00012975,2]
[361375693,1747527032525,-3108.60135854,0.00012975,2]
[361375694,1747527032536,-11798.31590297,0.00012975,2]
[361375695,1747527032546,-164.93,0.00013297,2]
[361375696,1747527032555,-423.0315306,0.00013299,2]
[361375697,1747527032564,-151.0,0.00013299,2]
[361375698,1747527032574,-155.0,0.00013299,2]
[361375699,1747527032584,-207.4,0.00013299,2]
[361375700,1747527032593,-719.52358209,0.00013299,2]
[361375701,1747527032603,-668.65185757,0.00013299,2]
[361375702,1747527032612,-202.0,0.00013335,2]
[361375703,1747527032621,-1173.84351677,0.00013438,2]
[361375704,1747527032632,-3082.31348834,0.00013438,2]
[361375705,1747527032642,-200.0,0.00013531,2]
[361375707,1747527032651,-154.48,0.00013699,2]
[361375708,1747527032661,-1000.0,0.00013765,2]
[361375709,1747527032670,-150.0,0.00013773,2]
[361375712,1747527032680,-150.0,0.00013792,2]
[361375713,1747527033154,-1234.77414076,0.000138,2]
[361375719,1747527038222,-163.66,0.00013068,2]
[361375720,1747527038234,-741.22585924,0.000138,2]
[361375721,1747527038243,-250.0,0.00013808,2]
[361375722,1747527038252,-1000.0,0.00013826,2]
[361375723,1747527038261,-150.0,0.00013834,2]
[361375724,1747527038271,-693.3919763,0.00013847,2]
[361375725,1747527038280,-500.0,0.00013873,2]
[361375726,1747527038290,-500.77208003,0.00013873,2]
[361375727,1747527038299,-500.0,0.00013873,2]
[361375728,1747527038308,-520.04830345,0.00013873,2]
[361375729,1747527038317,-500.33340618,0.00013873,2]
[361375730,1747527038328,-500.0,0.00013873,2]
[361375731,1747527038337,-150.0,0.00013874,2]
[361375732,1747527038347,-150.0,0.00013891,2]
[361375733,1747527038356,-2870.1466,0.000139,2]
[361375734,1747527038365,-238.4295,0.000139,2]
[361375735,1747527038374,-1000.0,0.000139,2]
[361375736,1747527038387,-2500.0,0.000139,2]
[361375737,1747527038396,-687.0829,0.000139,2]
[361375738,1747527038406,-165.68994279,0.000139,2]
[361375739,1747527038415,-174.54853767,0.000139,2]
[361375740,1747527038425,-5000.0,0.000139,2]
[361375741,1747527038434,-222.1351471,0.000139,2]
[361375742,1747527038443,-400.46448208,0.000139,2]
[361375743,1747527038470,-339.95161181,0.000139,2]
[361375744,1747527038480,-1213.94269164,0.000139,2]
[361375745,1747527038489,-657.89849542,0.000139,2]
[361375746,1747527038499,-168.08847531,0.000139,2]
[361375747,1747527038508,-2322.5444697,0.00013929,2]
[361375748,1747527038518,-150.0,0.00013942,2]
[361375749,1747527038527,-150.0,0.00013945,2]
[361375750,1747527038536,-150.0,0.00013969,2]
[361375751,1747527038545,-500.0,0.00013973,2]
[361375752,1747527038555,-503.52444671,0.00013973,2]
[361375753,1747527038564,-500.0,0.00013973,2]
[361375755,1747527038574,-500.0,0.00013973,2]
[361375757,1747527038583,-150.0,0.00013977,2]
[361375759,1747527038592,-150.0,0.00013984,2]
[361375761,1747527038602,-4238.5259554,0.00013989,2]
[361375763,1747527038612,-5141.8191614,0.00013989,2]
[361375765,1747527038621,-658.5277696,0.00013989,2]
[361375767,1747527038631,-500.0,0.00013989,2]
[361375770,1747527038640,-416.32681448,0.00013989,2]
[361375771,1747527038650,-459.28743756,0.00013989,2]
[361375773,1747527038661,-168.91,0.0001399,2]
[361375776,1747527038671,-168.91,0.0001399,2]
[361375777,1747527038680,-168.91,0.0001399,2]
[361375779,1747527038690,-168.91,0.0001399,2]
[361375781,1747527038699,-168.91,0.0001399,2]
[361375783,1747527038709,-168.91,0.0001399,2]
[361375785,1747527038719,-168.91,0.0001399,2]
[361375787,1747527038728,-168.91,0.0001399,2]
[361375789,1747527038738,-168.91,0.0001399,2]
[361375791,1747527038747,-168.91,0.0001399,2]
[361375792,1747527038757,-3959.2618998,0.0001399,2]
[361375795,1747527038766,-1321.08500386,0.0001399,2]
[361375797,1747527038779,-2358.91284034,0.0001399,2]
[361375799,1747527038789,-3400.7337886,0.0001399,2]
[361375801,1747527038798,-3121.469733,0.0001399,2]
[361375803,1747527038807,-7198.5468259,0.0001399,2]
[361375805,1747527038816,-9255.2744905,0.0001399,2]
[361375807,1747527038826,-11312.0021551,0.0001399,2]
[361375809,1747527038835,-13368.7298197,0.0001399,2]
[361375811,1747527038845,-15425.4574842,0.0001399,2]
[361375813,1747527038854,-210.75892125,0.0001399,2]
[361375815,1747527038863,-210.75892125,0.0001399,2]
[361375817,1747527038873,-921.9388775,0.0001399,2]
[361375819,1747527038882,-1185.3499854,0.0001399,2]
[361375821,1747527038893,-1448.7610933,0.0001399,2]
[361375823,1747527038903,-1712.1722011,0.0001399,2]
[361375825,1747527038914,-1975.583309,0.0001399,2]
[361375827,1747527038924,-200.0,0.00013993,2]
[361375829,1747527038933,-250.0,0.00013993,2]
[361375831,1747527038942,-150.0,0.00013999,2]
[361375833,1747527038951,-226.31951795,0.00014,2]
[361375835,1747527038960,-245580.83814076,0.00014,2]
[361375871,1747527040797,-190.78567092,0.000139,2]
[361375873,1747527040807,-11.51401833,0.00014,2]
[361375903,1747527042188,-33370.09039478,0.00014,2]
[361375904,1747527042200,-45783.44867603,0.00014,2]
[361375905,1747527042211,-22012.19748137,0.00014,2]
[361375906,1747527042222,-5957.93501804,0.00014,2]
[361375907,1747527042232,-14244.39258209,0.00014,2]
[361375909,1747527043623,-1248.36196045,0.00014,2]
[361375958,1747527046181,-5037.85183304,0.00014,2]
[361375959,1747527046548,-6432.0711299,0.00014,2]
[361376039,1747527406590,194.37,0.00010633,2]
[361376040,1747527668475,-150.0,0.00013516,7]
[361376041,1747527734720,-153.96254158,0.00012999,2]
[361376042,1747527799392,4500.0,0.000137,5]
[361376043,1747527801492,900.0,0.000138,5]
[361376044,1747527803585,900.0,0.000139,5]
[361376045,1747527946432,-200.0,0.00012364,2]
[361376046,1747527950657,-2.0,0.00012364,2]
[361376047,1747528046460,3000.0,0.000137,5]
[361376048,1747528048550,600.0,0.000138,5]
[361376049,1747528050634,600.0,0.000139,5]
[361376050,1747528073427,629.13304438,0.0001,2]
[361376094,1747528231493,-332.82,0.0001284,2]
[361376095,1747528231505,-936.14,0.0001289,2]
[361376096,1747528231515,-1200.0,0.00012998,2]
[361376097,1747528231525,-1776.1553792,0.00012999,2]
[361376098,1747528231563,-30860.26777011,0.00012999,2]
[361376099,1747528231576,-5220.87982213,0.00012999,2]
[361376100,1747528231588,-200.0,0.00013,2]
[361376101,1747528231599,-501.35,0.00013,2]
[361376102,1747528231609,-504.97,0.00013,2]
[361376103,1747528231619,-500.0,0.00013,2]
[361376104,1747528231629,-500.0,0.00013,2]
[361376105,1747528231638,-500.0,0.00013,2]
[361376106,1747528231648,-500.0,0.00013,2]
[361376107,1747528231660,-500.0,0.00013,2]
[361376108,1747528231670,-500.0,0.00013,2]
[361376109,1747528231682,-500.0,0.00013,2]
[361376110,1747528231694,-500.0,0.00013,2]
[361376111,1747528231705,-500.0,0.00013,2]
[361376112,1747528231717,-500.0,0.00013,2]
[361376113,1747528231728,-500.0,0.00013,2]
[361376114,1747528231738,-500.0,0.00013,2]
[361376116,1747528231748,-500.0,0.00013,2]
[361376118,1747528231757,-500.0,0.00013,2]
[361376120,1747528231767,-500.0,0.00013,2]
[361376122,1747528231776,-500.0,0.00013,2]
[361376124,1747528231785,-500.0,0.00013,2]
[361376126,1747528231794,-500.0,0.00013,2]
[361376129,1747528231803,-514.38,0.00013,2]
[361376131,1747528231812,-500.0,0.00013,2]
[361376133,1747528231821,-158.13751,0.00013,2]
[361376136,1747528231831,-1000.0,0.00013176,2]
[361376139,1747528231840,-600.0,0.000133,4]
[361376141,1747528231849,-706.36,0.00013348,2]
[361376144,1747528231858,-1200.0,0.000134,4]
[361376146,1747528231867,-178.53,0.00013461,2]
[361376148,1747528231877,-1800.0,0.000135,4]
[361376150,1747528231886,-1880.0,0.000136,2]
[361376152,1747528231895,-2400.0,0.000136,4]
[361376154,1747528231905,-250.0,0.00013669,2]
[361376156,1747528231914,-154.48,0.00013699,2]
[361376158,1747528231923,-500.0,0.00013773,2]
[361376160,1747528231932,-207.4,0.00013787,2]
[361376162,1747528231941,-340.06011342,0.00013795,2]
[361376386,1747528237327,-282.55999991,0.00013793,2]
[361376387,1747528237339,-232.47490863,0.00013793,2]
[361376388,1747528237348,-406.22788953,0.00013793,2]
[361376389,1747528237360,-108.80701901,0.00013793,2]
[361376390,1747528237371,-515.03490854,0.00013793,2]
[361376391,1747528237381,-515.03490854,0.00013793,2]
[361376392,1747528237391,-515.03490854,0.00013793,2]
[361376393,1747528237400,-515.03490854,0.00013793,2]
[361376394,1747528237409,-515.03490854,0.00013793,2]
[361376395,1747528237418,-515.03490854,0.00013793,2]
[361376396,1747528237427,-515.03490854,0.00013793,2]
[361376397,1747528237436,-515.03490854,0.00013793,2]
[361376398,1747528237445,-515.03490854,0.00013793,2]
[361376399,1747528237454,-515.03490854,0.00013793,2]
[361376400,1747528237463,-515.03490854,0.00013793,2]
[361376401,1747528237472,-515.03490854,0.00013793,2]
[361376402,1747528237481,-515.03490854,0.00013793,2]
[361376403,1747528237490,-515.03490854,0.00013793,2]
[361376404,1747528237499,-515.03490854,0.00013793,2]
[361376406,1747528237509,-515.03490854,0.00013793,2]
[361376408,1747528237518,-515.03490854,0.00013793,2]
[361376409,1747528237527,-515.03490854,0.00013793,2]
[361376410,1747528237536,-515.03490854,0.00013793,2]
[361376411,1747528237545,-515.03490854,0.00013793,2]
[361376412,1747528237554,-515.03490854,0.00013793,2]
[361376414,1747528237563,-515.03490854,0.00013793,2]
[361376416,1747528237572,-515.03490854,0.00013793,2]
[361376418,1747528237582,-515.03490854,0.00013793,2]
[361376420,1747528237591,-515.03490854,0.00013793,2]
[361376422,1747528237601,-515.03490854,0.00013793,2]
[361376424,1747528237610,-515.03490854,0.00013793,2]
[361376425,1747528237619,-515.03490854,0.00013793,2]
[361376427,1747528237628,-515.03490854,0.00013793,2]
[361376429,1747528237638,-515.03490854,0.00013793,2]
[361376431,1747528237648,-515.03490854,0.00013793,2]
[361376433,1747528237657,-18.78930811,0.00013793,2]
[361376435,1747528237669,-496.24560043,0.00013793,2]
[361376436,1747528237678,-480.43278663,0.00013793,2]
[361376441,1747528237711,-34.60212191,0.00013793,2]
[361376442,1747528237720,-515.03490854,0.00013793,2]
[361376444,1747528237730,-515.03490854,0.00013793,2]
[361376446,1747528237739,-515.03490854,0.00013793,2]
[361376448,1747528237748,-515.03490854,0.00013793,2]
[361376450,1747528237757,-515.03490854,0.00013793,2]
[361376452,1747528237767,-515.03490854,0.00013793,2]
[361376453,1747528237775,-515.03490854,0.00013793,2]
[361376454,1747528237785,-515.03490854,0.00013793,2]
[361376455,1747528237795,-515.03490854,0.00013793,2]
[361376456,1747528237804,-515.03490854,0.00013793,2]
[361376457,1747528237815,-515.03490854,0.00013793,2]
[361376458,1747528237824,-515.03490854,0.00013793,2]
[361376460,1747528237833,-515.03490854,0.00013793,2]
[361376461,1747528237844,-515.03490854,0.00013793,2]
[361376462,1747528237853,-515.03490854,0.00013793,2]
[361376463,1747528237863,-515.03490854,0.00013793,2]
[361376464,1747528237873,-378.92790927,0.00013793,2]
[361376465,1747528237884,-136.10699927,0.00013793,2]
[361376466,1747528237894,-515.03490854,0.00013793,2]
[361376467,1747528237904,-515.03490854,0.00013793,2]
[361376468,1747528237914,-515.03490854,0.00013793,2]
[361376469,1747528237924,-515.03490854,0.00013793,2]
[361376470,1747528237934,-23559.93988658,0.00013795,2]
[361376471,1747528237944,-250.0,0.00013831,2]
[361376472,1747528237953,-670.80178791,0.0001389,2]
[361376473,1747528237962,-2257.7264,0.000139,2]
[361376474,1747528237971,-190.7057544,0.000139,2]
[361376475,1747528237980,-174.54853766,0.000139,2]
[361376476,1747528237989,-5000.0,0.000139,2]
[361376477,1747528237998,-168.08847531,0.000139,2]
[361376478,1747528238007,-2596.8136013,0.00013929,2]
[361376479,1747528238016,-1186.0,0.00013933,2]
[361376480,1747528238025,-1186.0,0.00013933,2]
[361376481,1747528238033,-500.0,0.00013973,2]
[361376482,1747528238043,-151.0,0.00013979,2]
[361376483,1747528238054,-155.0,0.00013979,2]
[361376484,1747528238063,-200.0,0.00013979,2]
[361376485,1747528238072,-719.52358209,0.00013979,2]
[361376486,1747528238081,-668.65185757,0.00013979,2]
[361376487,1747528238090,-6268.7647993,0.00013989,2]
[361376488,1747528238099,-867.4465974,0.00013989,2]
[361376489,1747528238108,-11056.4721281,0.00013989,2]
[361376490,1747528238117,-1659.072912,0.00013989,2]
[361376491,1747528238127,-5574.8751965,0.0001399,2]
[361376492,1747528238135,-4880.9855936,0.0001399,2]
[361376493,1747528238477,-4187.0959908,0.0001399,2]
[361376494,1747528238494,-3493.2063879,0.0001399,2]
[361376495,1747528238503,-772.1936106,0.0001399,2]
[361376496,1747528238512,-676.9406238,0.0001399,2]
[361376497,1747528238522,-581.687637,0.0001399,2]
[361376498,1747528238531,-486.4346502,0.0001399,2]
[361376499,1747528238539,-9852.1839982,0.0001399,2]
[361376500,1747528238549,-8647.8958683,0.0001399,2]
[361376501,1747528238558,-7443.6077383,0.0001399,2]
[361376502,1747528238567,-6239.3196084,0.0001399,2]
[361376503,1747528238577,-1478.3641116,0.0001399,2]
[361376504,1747528238587,-1297.6553113,0.0001399,2]
[361376505,1747528238598,-1116.9465109,0.0001399,2]
[361376506,1747528238608,-936.2377105,0.0001399,2]
[361376507,1747528238617,-210.75892125,0.0001399,2]
[361376508,1747528238626,-210.75892125,0.0001399,2]
[361376509,1747528238635,-150.0,0.00013999,2]
[361376510,1747528238644,-197234.74392106,0.00014,2]
[361376511,1747528238656,-320.14840894,0.00014,2]
[361376512,1747528238668,-411.93182001,0.00014,2]
[361376513,1747528238681,-735.60850648,0.00014,2]
[361376514,1747528238692,-1241.83745801,0.00014,2]
[361376574,1747528240401,-226.31951795,0.00013999,2]
[361376576,1747528240410,-239.5520012,0.00014,2]
[361376578,1747528240424,-346.23799973,0.00014,2]
[361376580,1747528240437,-1156.2,0.00014,2]
[361376582,1747528240448,-25410.54114672,0.00014,2]
[361376585,1747528240459,-629.99192494,0.00014,2]
[361376588,1747528240482,-9025.32125001,0.00014,2]
[361376590,1747528240493,-13792.92332109,0.00014,2]
[361376592,1747528240505,-4751.1,0.00014,2]
[361376595,1747528240516,-3071.32839809,0.00014,2]
[361376597,1747528240528,-3682.8819354,0.00014,2]
[361376599,1747528240539,-20376.5625003,0.00014,2]
[361376884,1747528243291,-72486.55414794,0.00013999,2]
[361376887,1747528243310,-540.07934891,0.00013999,2]
[361376889,1747528243322,-475.47215707,0.00013999,2]
[361376891,1747528243333,-873.04153788,0.00013999,2]
[361376893,1747528243344,-1744.99334985,0.00013999,2]
[361377020,1747528245323,-657.27927126,0.000139,2]
[361377021,1747528245335,-664.6320972,0.000139,2]
[361377022,1747528245438,-1178.08863154,0.000139,2]
[361377023,1747528245449,-30310.81420263,0.00013999,2]
[361377024,1747528245653,-588.748,0.00013999,2]
[361377025,1747528245665,-4483.602,0.00013999,2]
[361377026,1747528245707,-1273.0,0.00013999,2]
[361377027,1747528245718,-954.07311276,0.00013999,2]
[361377028,1747528245731,-1890.1,0.00013999,2]
[361377029,1747528245742,-8249.9,0.00013999,2]
[361377030,1747528245753,-1019.60388616,0.00013999,2]
[361377037,1747528667212,-170.92,0.00012201,2]
[361377038,1747528667234,-16.94100212,0.00012529,2]
[361377039,1747528669360,-186.05899788,0.00012529,2]
[361377040,1747528972653,150.0,0.00013391,7]
[361377058,1747529399758,674.94639901,0.00011186,2]
[361377060,1747529406623,-144.05360099,0.00011186,2]
[361377061,1747529406647,-43.82586942,0.00012305,2]
[361377062,1747529409885,-156.17413058,0.00012305,2]
[361377063,1747529431653,-203.0,0.0001279,2]
[361377064,1747529431663,-500.0,0.00013,2]
[361377065,1747529431672,-500.0,0.00013,2]
[361377066,1747529431681,-285.58,0.00013,2]
[361377067,1747529431690,-1923.43,0.00013128,2]
[361377068,1747529431699,-45.69914037,0.00013155,2]
[361377069,1747529431710,-422.37085963,0.00013155,2]
[361377070,1747529431720,-936.32,0.00013201,2]
[361377071,1747529431729,-819.0,0.0001345,2]
[361377072,1747529431738,-1000.0,0.00013471,2]
[361377073,1747529431747,-154.48,0.00013699,2]
[361377074,1747529431756,-207.4,0.00013852,2]
[361377075,1747529431766,-500.0,0.00013859,2]
[361377076,1747529431775,-500.0,0.00013859,2]
[361377077,1747529431783,-500.0,0.00013859,2]
[361377078,1747529431793,-500.0,0.00013859,2]
[361377079,1747529431802,-500.0,0.00013859,2]
[361377080,1747529431813,-500.0,0.00013859,2]
[361377081,1747529431823,-500.0,0.00013859,2]
[361377082,1747529431831,-500.0,0.00013859,2]
[361377083,1747529431840,-500.0,0.00013859,2]
[361377084,1747529431849,-500.0,0.00013859,2]
[361377085,1747529431860,-500.0,0.00013859,2]
[361377087,1747529431869,-500.0,0.00013859,2]
[361377089,1747529431879,-500.0,0.00013859,2]
[361377091,1747529431888,-500.0,0.00013859,2]
[361377093,1747529431900,-500.0,0.00013859,2]
[361377095,1747529431910,-500.0,0.00013859,2]
[361377097,1747529431920,-500.0,0.00013859,2]
[361377099,1747529431929,-500.0,0.00013859,2]
[361377101,1747529431938,-500.0,0.00013859,2]
[361377103,1747529431948,-500.0,0.00013859,2]
[361377105,1747529431958,-500.0,0.00013859,2]
[361377107,1747529431967,-500.0,0.00013859,2]
[361377109,1747529431976,-500.0,0.00013859,2]
[361377111,1747529431987,-500.0,0.00013859,2]
[361377113,1747529431996,-500.0,0.00013859,2]
[361377115,1747529432004,-500.0,0.00013859,2]
[361377117,1747529432014,-500.0,0.00013859,2]
[361377119,1747529432023,-500.0,0.00013859,2]
[361377121,1747529432032,-500.0,0.00013859,2]
[361377123,1747529432041,-368.23558127,0.00013859,2]
[361377125,1747529432049,-500.0,0.00013859,2]
[361377127,1747529432058,-500.0,0.00013859,2]
[361377129,1747529432067,-500.0,0.00013859,2]
[361377131,1747529432076,-500.0,0.00013859,2]
[361377133,1747529432086,-500.0,0.00013859,2]
[361377135,1747529432095,-500.0,0.00013859,2]
[361377137,1747529432104,-500.0,0.00013859,2]
[361377139,1747529432113,-500.0,0.00013859,2]
[361377141,1747529432122,-500.0,0.00013859,2]
[361377143,1747529432131,-500.0,0.00013859,2]
[361377145,1747529432141,-500.0,0.00013859,2]
[361377147,1747529432150,-500.0,0.00013859,2]
[361377149,1747529432159,-500.0,0.00013859,2]
[361377151,1747529432168,-500.0,0.00013859,2]
[361377153,1747529432177,-500.0,0.00013859,2]
[361377155,1747529432187,-500.0,0.00013859,2]
[361377157,1747529432196,-500.0,0.00013859,2]
[361377159,1747529432205,-500.0,0.00013859,2]
[361377161,1747529432214,-500.0,0.00013859,2]
[361377163,1747529432223,-500.0,0.00013859,2]
[361377165,1747529432233,-500.0,0.00013859,2]
[361377167,1747529432242,-500.0,0.00013859,2]
[361377169,1747529432251,-500.0,0.00013859,2]
[361377171,1747529432260,-500.0,0.00013859,2]
[361377173,1747529432268,-500.0,0.00013859,2]
[361377175,1747529432277,-500.0,0.00013859,2]
[361377177,1747529432286,-500.0,0.00013859,2]
[361377179,1747529432295,-500.0,0.00013859,2]
[361377181,1747529432304,-500.0,0.00013859,2]
[361377183,1747529432313,-500.0,0.00013859,2]
[361377185,1747529432322,-500.0,0.00013859,2]
[361377187,1747529432331,-500.0,0.00013859,2]
[361377189,1747529432341,-500.0,0.00013859,2]
[361377191,1747529432351,-500.0,0.00013859,2]
[361377193,1747529432360,-500.0,0.00013859,2]
[361377195,1747529432369,-500.0,0.00013859,2]
[361377197,1747529432378,-500.0,0.00013859,2]
[361377199,1747529432388,-500.0,0.00013859,2]
[361377201,1747529432398,-500.0,0.00013859,2]
[361377203,1747529432407,-500.0,0.00013859,2]
[361377205,1747529432417,-500.0,0.00013859,2]
[361377207,1747529432426,-239.5365591,0.00013859,2]
[361377210,1747529432438,-260.4634409,0.00013859,2]
[361377212,1747529432447,-139.79307049,0.00013859,2]
[361377239,1747529437426,-360.20692951,0.00013859,2]
[361377241,1747529437435,-500.0,0.00013859,2]
[361377243,1747529437445,-500.0,0.00013859,2]
[361377244,1747529437454,-138.72172311,0.00013859,2]
[361377245,1747529437529,-361.27827689,0.00013859,2]
[361377246,1747529437539,-300.0,0.00013859,2]
[361377247,1747529437548,-500.0,0.00013859,2]
[361377248,1747529437558,-500.0,0.00013859,2]
[361377249,1747529437567,-568.38772311,0.0001386,2]
[361377250,1747529437636,-11260.68469993,0.0001386,2]
[361377251,1747529437648,-44676.62805434,0.0001386,2]
[361377252,1747529437658,-38974.66931694,0.0001386,2]
[361377253,1747529437668,-500.0,0.00013873,2]
[361377254,1747529437676,-670.80178791,0.0001389,2]
[361377255,1747529437686,-163.4620752,0.000139,2]
[361377257,1747529437695,-2257.7264,0.000139,2]
[361377259,1747529437704,-174.54853766,0.000139,2]
[361377261,1747529437713,-5000.0,0.000139,2]
[361377263,1747529437723,-199.92163239,0.000139,2]
[361377265,1747529437731,-484.75339408,0.000139,2]
[361377267,1747529437742,-2596.8136013,0.00013929,2]
[361377269,1747529437752,-1186.0,0.00013967,2]
[361377271,1747529437763,-1186.0,0.00013967,2]
[361377273,1747529437773,-182.278,0.00013989,2]
[361377275,1747529437783,-2885.933,0.00013989,2]
[361377277,1747529437791,-276.512152,0.00013989,2]
[361377279,1747529437801,-12499.8150917,0.00013989,2]
[361377281,1747529437811,-755.5289107,0.00013989,2]
[361377283,1747529437823,-1290.9820711,0.00013989,2]
[361377285,1747529437833,-1229.6762212,0.0001399,2]
[361377287,1747529437842,-6412.3740567,0.0001399,2]
[361377289,1747529437851,-276.512152,0.0001399,2]
[361377291,1747529437861,-276.512152,0.0001399,2]
[361377293,1747529437871,-276.512152,0.0001399,2]
[361377295,1747529437882,-276.512152,0.0001399,2]
[361377297,1747529437892,-10772.5203134,0.0001399,2]
[361377299,1747529437902,-9045.2255352,0.0001399,2]
[361377301,1747529437912,-7317.930757,0.0001399,2]
[361377303,1747529437921,-5590.6359788,0.0001399,2]
[361377305,1747529437930,-1110.2580079,0.0001399,2]
[361377307,1747529437939,-929.5339447,0.0001399,2]
[361377309,1747529437949,-748.8098815,0.0001399,2]
[361377311,1747529437958,-568.0858183,0.0001399,2]
[361377313,1747529437968,-210.75892125,0.0001399,2]
[361377315,1747529437976,-210.75892125,0.0001399,2]
[361377317,1747529437986,-151.0,0.00013992,2]
[361377318,1747529437995,-155.0,0.00013992,2]
[361377320,1747529438003,-200.0,0.00013992,2]
[361377322,1747529438012,-719.52358209,0.00013992,2]
[361377324,1747529438022,-668.65185757,0.00013992,2]
[361377326,1747529438031,-180.55896231,0.00013999,2]
[361377328,1747529438039,-150.0,0.00013999,2]
[361377330,1747529438048,-127958.78335201,0.00014,2]
[361377333,1747529438067,-58131.58604024,0.00014,2]
[361377342,1747529439670,-178.53,0.00013544,2]
[361377343,1747529439681,-9341.47,0.00014,2]
[361377344,1747529439694,-468.5686367,0.00014,2]
[361377345,1747529439885,-5930.31268022,0.00014,2]
[361377424,1747529442654,-453.0,0.00014,2]
[361377434,1747529445702,-21414.95837535,0.00014,2]
[361377435,1747529445780,-604.0,0.00014,2]
[361377461,1747529912263,1300.0,0.000137,5]
[361377462,1747529915435,200.0,0.000138,5]
[361377463,1747529916453,200.0,0.000139,5]
[361377464,1747529946689,150.0,0.00012876,7]
[361377465,1747529970266,-208.692083,0.00012886,2]
[361377466,1747529970289,-5.44065147,0.00012951,2]
[361377467,1747529971880,-235.86726553,0.00012951,2]
[361377470,1747530406242,737.1,0.00010972,2]
[361377503,1747530559171,-203.0,0.0001215,2]
[361377508,1747530631734,-300.0,0.00012819,2]
[361377509,1747530631744,-1200.0,0.00012819,2]
[361377510,1747530631754,-200.0,0.0001282,2]
[361377511,1747530631764,-23900.0,0.0001282,2]
[361377512,1747530631774,-200.0,0.00012838,2]
[361377513,1747530631783,-234.03,0.00012838,2]
[361377514,1747530631793,-151.0773904,0.00012851,2]
[361377515,1747530631802,-200.0,0.0001286,2]
[361377516,1747530631812,-1000.0,0.00012882,2]
[361377517,1747530631821,-8.692083,0.00012951,2]
[361377518,1747530631831,-250.0,0.0001309,2]
[361377519,1747530631839,-737.1,0.00013236,2]